{"text_format":"3","workbook":"xlsx","n_sheets":1,"sheets":["Tensão Arterial e Glicose"],"not_rendered":{"defined_names":9},"read":"whole","date_system":"1900"}

{"sheet":"Tensão Arterial e Glicose","index":0,"n_rows":13,"n_cols":11,"rows_kept":13,"merged":[[0,1,4,3],[0,4,0,9],[1,4,1,6],[1,7,1,9]]}
[null,"Controlador de Tensão Arterial e de Glicose",null,null,"Personalize os valores da escala nas células E2 a J5 abaixo."]
[{"$nulls":4},"TENSÃO ARTERIAL",null,null,"ESCALA DE GLICOSE"]
[{"$nulls":4},120,"SISTÓLICA",140,70,100,150]
[{"$nulls":4},80,"DIASTÓLICA",90,"BAIXA","NORMAL","ELEVADA"]
[{"$nulls":4},"TENSÃO ALVO",null,"LIGAR AO MÉDICO"]
[null,"Data","Hora","Evento","Sistólica","Diastólica","Frequência Cardíaca","Glicose","Nível","Estado","Notas"]
[null,{"$f":"TODAY()","v":"2022-08-08"},"06:00:00","Acordar",129,79,72,55,{"$f":"TensãoArterialEGlicose[[#This Row],[Glicose]]","v":55},{"$f":"IFERROR(IF(TensãoArterialEGlicose[[#This Row],[Nível]]=0,\"\",IF(TensãoArterialEGlicose[[#This Row],[Nível]]<=GBaixo,\"Baixa\",IF(AND(TensãoArterialEGlicose[[#This Row],[Nível]]>GBaixo,TensãoArterialEGlicose[[#This Row],[Nível]]<GElevado),\"Normal\",\"Elevada\"))), \"\")","v":"Baixa"}]
[null,{"$f":"TODAY()","v":"2022-08-08"},"07:00:00","Antes da Refeição",120,80,74,70,{"$f":"TensãoArterialEGlicose[[#This Row],[Glicose]]","v":70},{"$f":"IFERROR(IF(TensãoArterialEGlicose[[#This Row],[Nível]]=0,\"\",IF(TensãoArterialEGlicose[[#This Row],[Nível]]<=GBaixo,\"Baixa\",IF(AND(TensãoArterialEGlicose[[#This Row],[Nível]]>GBaixo,TensãoArterialEGlicose[[#This Row],[Nível]]<GElevado),\"Normal\",\"Elevada\"))), \"\")","v":"Baixa"}]
[null,"2022-08-08","09:00:00","Após a Refeição",133,80,75,75,{"$f":"TensãoArterialEGlicose[[#This Row],[Glicose]]","v":75},{"$f":"IFERROR(IF(TensãoArterialEGlicose[[#This Row],[Nível]]=0,\"\",IF(TensãoArterialEGlicose[[#This Row],[Nível]]<=GBaixo,\"Baixa\",IF(AND(TensãoArterialEGlicose[[#This Row],[Nível]]>GBaixo,TensãoArterialEGlicose[[#This Row],[Nível]]<GElevado),\"Normal\",\"Elevada\"))), \"\")","v":"Normal"}]
[null,"2022-08-08","10:00:00","Apenas TA",143,91,75,190,{"$f":"TensãoArterialEGlicose[[#This Row],[Glicose]]","v":190},{"$f":"IFERROR(IF(TensãoArterialEGlicose[[#This Row],[Nível]]=0,\"\",IF(TensãoArterialEGlicose[[#This Row],[Nível]]<=GBaixo,\"Baixa\",IF(AND(TensãoArterialEGlicose[[#This Row],[Nível]]>GBaixo,TensãoArterialEGlicose[[#This Row],[Nível]]<GElevado),\"Normal\",\"Elevada\"))), \"\")","v":"Elevada"}]
[null,"2022-08-08","12:00:00","Antes da Refeição",141,84,70,140,{"$f":"TensãoArterialEGlicose[[#This Row],[Glicose]]","v":140},{"$f":"IFERROR(IF(TensãoArterialEGlicose[[#This Row],[Nível]]=0,\"\",IF(TensãoArterialEGlicose[[#This Row],[Nível]]<=GBaixo,\"Baixa\",IF(AND(TensãoArterialEGlicose[[#This Row],[Nível]]>GBaixo,TensãoArterialEGlicose[[#This Row],[Nível]]<GElevado),\"Normal\",\"Elevada\"))), \"\")","v":"Normal"}]
[null,{"$f":"TODAY()","v":"2022-08-08"},"15:00:00","Após a Refeição",132,80,68,90,{"$f":"TensãoArterialEGlicose[[#This Row],[Glicose]]","v":90},{"$f":"IFERROR(IF(TensãoArterialEGlicose[[#This Row],[Nível]]=0,\"\",IF(TensãoArterialEGlicose[[#This Row],[Nível]]<=GBaixo,\"Baixa\",IF(AND(TensãoArterialEGlicose[[#This Row],[Nível]]>GBaixo,TensãoArterialEGlicose[[#This Row],[Nível]]<GElevado),\"Normal\",\"Elevada\"))), \"\")","v":"Normal"},"Medicamento da TA tomado à refeição"]
[null,"Médias",null,null,{"$f":"SUBTOTAL(101,TensãoArterialEGlicose[Sistólica])","v":133},{"$f":"SUBTOTAL(101,TensãoArterialEGlicose[Diastólica])","v":{"v":82.33333333333333,"d":"82"}},{"$f":"SUBTOTAL(101,TensãoArterialEGlicose[Frequência Cardíaca])","v":{"v":72.33333333333333,"d":"72"}},{"$f":"SUBTOTAL(101,TensãoArterialEGlicose[Glicose])","v":{"v":103.33333333333333,"d":"103"}}]